bitfinex-derivatives/quotes_BTCF0:USTF0_20250930
["timestamp","ask_amount","ask_price","bid_price","bid_amount"]
[1759202403925,1.26451045,114470.0,114460.0,0.40234]
[1759202404225,0.46791045,114470.0,114460.0,0.40234]
[1759202404428,1.26451045,114470.0,114460.0,0.40234]
[1759202405125,0.46791045,114470.0,114460.0,0.40234]
[1759202405331,1.26451045,114470.0,114460.0,0.40234]
[1759202406232,0.19600357,114470.0,114460.0,0.4896412]
[1759202406418,1.26451045,114470.0,114460.0,0.4896412]
[1759202407226,0.46791045,114470.0,114460.0,0.4896412]
[1759202407427,1.26451045,114470.0,114460.0,0.4896412]
[1759202408325,0.46791045,114470.0,114460.0,0.4896412]
[1759202408525,1.26451045,114470.0,114460.0,0.4896412]
[1759202409028,0.46791045,114470.0,114460.0,0.4896412]
[1759202409226,1.26447045,114470.0,114460.0,0.4896412]
[1759202409527,0.46791045,114470.0,114460.0,0.4896412]
[1759202409729,1.26447045,114470.0,114460.0,0.4896412]
[1759202410029,1.24319395,114470.0,114460.0,0.4896412]
[1759202410626,0.44663395,114470.0,114460.0,0.4896412]
[1759202410827,1.24323395,114470.0,114460.0,0.4896412]
[1759202420238,1.24340012,114470.0,114460.0,0.4896412]
[1759202420940,1.24827012,114470.0,114460.0,0.4896412]
[1759202421937,1.24827012,114470.0,114460.0,0.38899]
[1759202422145,2.28114317,114470.0,114460.0,0.006]
[1759202422442,1.14538696,114470.0,114460.0,0.006]
[1759202422632,1.94186696,114470.0,114460.0,0.02745]
[1759202425332,2.30266696,114470.0,114460.0,0.02745]
[1759202425534,2.30266696,114470.0,114450.0,0.3608]
[1759202425535,0.0873011,114460.0,114450.0,0.3608]
[1759202425842,0.0873011,114460.0,114440.0,0.38225]
[1759202425843,0.1191887,114450.0,114440.0,0.38225]
[1759202426044,1.48145859,114450.0,114440.0,0.38225]
[1759202426436,0.1224364,114440.0,114430.0,0.39495]
[1759202426635,0.6665825,114440.0,114430.0,0.39495]
[1759202427545,0.6864629,114440.0,114430.0,0.38225]
[1759202427742,1.4829429,114440.0,114430.0,0.02145]
[1759202427938,1.4659429,114440.0,114430.0,0.02145]
[1759202428242,0.1094941,114430.0,114420.0,0.4822767]
[1759202428448,0.39049855,114430.0,114420.0,0.4822767]
[1759202428647,0.38049855,114430.0,114420.0,0.4822767]
[1759202431041,0.38049855,114430.0,114420.0,0.4882767]
[1759202431248,0.43249855,114430.0,114420.0,0.4882767]
[1759202431746,1.22905855,114430.0,114420.0,0.4882767]
[1759202431947,1.30019969,114430.0,114420.0,0.4882767]
[1759202432851,0.50363969,114430.0,114420.0,0.4882767]
[1759202433151,1.30015969,114430.0,114420.0,0.4882767]
[1759202436150,0.50363969,114430.0,114420.0,0.4882767]
[1759202436349,1.30019969,114430.0,114420.0,0.4882767]
[1759202439957,1.93794274,114430.0,114420.0,0.006]
[1759202440251,1.59901372,114430.0,114420.0,0.006]
[1759202440657,1.59901372,114430.0,114420.0,0.02745]
[1759202442054,0.80245372,114430.0,114420.0,0.02745]
[1759202442254,1.59901372,114430.0,114420.0,0.02745]
[1759202445455,0.80245372,114430.0,114420.0,0.02745]
[1759202445655,1.59897372,114430.0,114420.0,0.04015]
[1759202446757,1.59410372,114430.0,114420.0,0.04015]
[1759202447955,0.79758372,114430.0,114420.0,0.04015]
[1759202448258,1.59410372,114430.0,114420.0,0.04015]
[1759202449060,0.79758372,114430.0,114420.0,0.04015]
[1759202449259,1.59410372,114430.0,114420.0,0.04015]
[1759202450259,0.79758372,114430.0,114420.0,0.04015]
[1759202450452,1.59410372,114430.0,114420.0,0.04015]
[1759202451260,0.79758372,114430.0,114420.0,0.04015]
[1759202451454,1.59410372,114430.0,114420.0,0.04015]
[1759202452060,0.79758372,114430.0,114420.0,0.1274817]
[1759202452358,1.59406372,114430.0,114420.0,0.1274817]
[1759202456160,0.79758372,114430.0,114420.0,0.1274817]
[1759202456359,1.59402372,114430.0,114420.0,0.1274817]
[1759202457761,1.59889372,114430.0,114420.0,0.1274817]
[1759202460661,1.59885372,114430.0,114420.0,0.1274817]
[1759202464568,0.80245372,114430.0,114420.0,0.1274817]
[1759202464869,1.59881372,114430.0,114420.0,0.1274817]
[1759202467765,1.59881372,114430.0,114420.0,0.1147817]
[1759202468366,1.59881372,114430.0,114420.0,0.1278817]
[1759202468870,1.59881372,114430.0,114420.0,0.1147817]
[1759202469870,0.80245372,114430.0,114420.0,0.1147817]
[1759202470171,1.59877372,114430.0,114420.0,0.1147817]
[1759202470676,1.59877372,114430.0,114410.0,0.3608]
[1759202470677,1.87084677,114430.0,114410.0,0.3608]
[1759202470973,0.1195093,114410.0,114400.0,0.4706768]
[1759202471173,1.48180638,114410.0,114400.0,0.4706768]
[1759202471672,1.48180638,114410.0,114400.0,0.4837768]
[1759202472266,1.47180638,114410.0,114400.0,0.4837768]
[1759202473077,1.47980638,114410.0,114400.0,0.4867768]
[1759202473874,1.52680638,114410.0,114400.0,0.4877768]
[1759202474176,1.52680638,114410.0,114400.0,0.1269768]
[1759202478374,0.73052638,114410.0,114400.0,0.1269768]
[1759202478673,1.52684638,114410.0,114400.0,0.1269768]
[1759202480274,1.25508282,114410.0,114400.0,0.1269768]
[1759202480774,0.37142352,114410.0,114400.0,0.1269768]
[1759202481076,1.25508282,114410.0,114400.0,0.4877768]
[1759202481280,0.45876282,114410.0,114400.0,0.4877768]
[1759202481575,1.25504282,114410.0,114400.0,0.4877768]
[1759202482078,0.98266028,114410.0,114400.0,0.4877768]
[1759202482376,1.25504282,114410.0,114400.0,0.4877768]
[1759202484875,1.23317184,114410.0,114400.0,0.4877768]
[1759202489984,1.23313184,114410.0,114400.0,0.4877768]
[1759202490184,1.25562256,114410.0,114400.0,0.4877768]
[1759202498579,0.45938256,114410.0,114400.0,0.4877768]
[1759202498784,1.25554256,114410.0,114400.0,0.4877768]
[1759202505799,1.25554256,114410.0,114400.0,0.1269768]
[1759202505989,1.25554256,114410.0,114400.0,0.4877768]
[1759202508594,0.45938256,114410.0,114400.0,0.4877768]
[1759202508792,1.25546256,114410.0,114400.0,0.4877768]
[1759202509698,0.45938256,114410.0,114400.0,0.4877768]
[1759202509999,1.25546256,114410.0,114400.0,0.4877768]
[1759202510197,0.45938256,114410.0,114400.0,0.4877768]
[1759202510397,1.25546256,114410.0,114400.0,0.4877768]
[1759202512405,0.45938256,114410.0,114400.0,0.4877768]
[1759202512606,1.25546256,114410.0,114400.0,0.4877768]
[1759202518596,1.24125728,114410.0,114400.0,0.4877768]
[1759202526907,0.44517728,114410.0,114400.0,0.4877768]
[1759202527308,1.24113728,114410.0,114400.0,0.4877768]
[1759202527803,0.44517728,114410.0,114400.0,0.4877768]
[1759202527997,1.24109728,114410.0,114400.0,0.4877768]
[1759202531908,0.44517728,114410.0,114400.0,0.4877768]
[1759202532107,1.24109728,114410.0,114400.0,0.4877768]
[1759202532301,1.21860656,114410.0,114400.0,0.4877768]
[1759202532506,1.24251997,114410.0,114400.0,0.4877768]
[1759202539517,0.97013743,114410.0,114400.0,0.4877768]
[1759202539708,1.24251997,114410.0,114400.0,0.4877768]
[1759202542316,1.51486611,114410.0,114400.0,0.4877768]
[1759202546626,1.50066097,114410.0,114400.0,0.4877768]
[1759202546819,1.51357097,114410.0,114400.0,0.4877768]
[1759202558235,0.71765097,114410.0,114400.0,0.4877768]
[1759202558533,1.51329097,114410.0,114400.0,0.4877768]
[1759202560834,0.71765097,114410.0,114400.0,0.4877768]
[1759202561024,0.86827299,114410.0,114400.0,0.8877768]
[1759202561230,1.14063733,114410.0,114400.0,1.16014114]
[1759202561531,0.34543733,114410.0,114400.0,0.8877768]
[1759202561831,0.35834733,114410.0,114400.0,0.4877768]
[1759202563837,0.44568663,114410.0,114400.0,0.4877768]
[1759202564337,0.44568663,114410.0,114400.0,0.76014114]
[1759202564529,0.44568663,114410.0,114400.0,0.4877768]
[1759202564730,0.35834733,114410.0,114400.0,0.4877768]
[1759202564932,0.35834733,114410.0,114400.0,0.8485768]
[1759202581947,0.34543733,114410.0,114400.0,0.8485768]
[1759202582143,0.35834733,114410.0,114400.0,0.8485768]
[1759202582344,0.34543733,114410.0,114400.0,0.8485768]
[1759202582547,0.34503733,114410.0,114400.0,1.6438968]
[1759202582841,0.35834733,114410.0,114400.0,1.6438968]
[1759202586949,0.35834733,114410.0,114400.0,0.8485768]
[1759202587150,0.35834733,114410.0,114400.0,1.6438568]
[1759202593358,0.35834733,114410.0,114400.0,1.6438168]
[1759202593760,0.35834733,114410.0,114400.0,1.6437768]
[1759202595464,0.35834733,114410.0,114400.0,0.9221768]
[1759202595660,0.35834733,114410.0,114400.0,0.8485768]
[1759202595963,0.63071167,114410.0,114400.0,1.6437768]
[1759202600768,0.63071167,114410.0,114400.0,0.8485768]
[1759202600965,0.63071167,114410.0,114400.0,1.6437368]
[1759202601768,0.63071167,114410.0,114400.0,0.8485768]
[1759202602168,0.63071167,114410.0,114400.0,1.6436968]
[1759202602369,0.35832283,114410.0,114400.0,1.6436968]
[1759202604368,0.35832283,114410.0,114400.0,0.8485768]
[1759202604667,0.35832283,114410.0,114400.0,1.6436968]
[1759202610468,0.35832283,114410.0,114400.0,0.8485768]
[1759202610858,0.35832283,114410.0,114400.0,1.6436168]
[1759202611072,0.08598299,114410.0,114400.0,1.6436168]
[1759202611259,0.35832283,114410.0,114400.0,1.6436168]
[1759202612869,0.35832283,114410.0,114400.0,0.8485768]
[1759202613069,0.35832283,114410.0,114400.0,1.6436168]
[1759202614573,0.35832283,114410.0,114400.0,1.6435768]
[1759202615868,0.35832283,114410.0,114400.0,0.8485768]
[1759202616074,0.44566213,114410.0,114400.0,1.6435768]
[1759202618068,0.44566213,114410.0,114400.0,0.8485768]
[1759202619375,0.44566213,114410.0,114400.0,0.848577]
[1759202619376,0.84566213,114410.0,114400.0,0.848577]
[1759202619572,0.44566213,114410.0,114400.0,0.848577]
[1759202619872,1.24062213,114410.0,114400.0,0.848577]
[1759202620472,0.44566213,114410.0,114400.0,0.848577]
[1759202620769,1.24062213,114410.0,114400.0,0.848577]
[1759202621174,1.24058213,114410.0,114400.0,0.848577]
[1759202624170,1.24054213,114410.0,114400.0,0.848577]
[1759202626873,1.24054213,114410.0,114400.0,0.40043]
[1759202627175,1.63273604,114410.0,114400.0,0.03963]
[1759202627377,0.83785604,114410.0,114400.0,0.03963]
[1759202627574,1.63273604,114410.0,114400.0,0.03963]
[1759202628879,1.58397646,114410.0,114400.0,0.03563]
[1759202629079,1.58797646,114410.0,114400.0,0.03563]
[1759202629378,1.58397646,114410.0,114400.0,0.122977]
[1759202629578,1.62097646,114410.0,114400.0,0.124977]
[1759202629775,1.62093646,114410.0,114400.0,0.124977]
[1759202634879,0.55375662,114410.0,114400.0,0.124977]
[1759202635182,1.62089646,114410.0,114400.0,0.124977]
[1759202639486,2.2932363,114410.0,114400.0,0.002]
[1759202639685,0.100257,114400.0,114390.0,0.1233242]
[1759202639985,1.49494732,114400.0,114390.0,0.1233242]
[1759202640286,1.46361009,114400.0,114390.0,0.1233242]
[1759202640584,0.66885009,114400.0,114390.0,0.1233242]
[1759202640784,1.46361009,114400.0,114390.0,0.1233242]
[1759202640986,1.49361009,114400.0,114390.0,0.1253242]
[1759202642190,1.46761009,114400.0,114390.0,0.1233242]
[1759202643283,1.46761009,114400.0,114390.0,0.01461]
[1759202643778,1.46761009,114400.0,114390.0,0.03597]
[1759202644185,2.23648009,114400.0,114390.0,0.00191]
[1759202644696,2.26781732,114400.0,114390.0,0.00191]
[1759202645084,2.28564312,114400.0,114390.0,0.00191]
[1759202645590,2.27753312,114400.0,114390.0,0.03693]
[1759202646079,1.48281312,114400.0,114390.0,0.03502]
[1759202646283,2.27753312,114400.0,114390.0,0.03502]
[1759202648587,1.48281312,114400.0,114390.0,0.03502]
[1759202648991,2.27749312,114400.0,114390.0,0.03502]
[1759202649985,1.73281344,114400.0,114390.0,0.03502]
[1759202650188,2.27749312,114400.0,114390.0,0.03502]
[1759202651493,1.48281312,114400.0,114390.0,0.03502]
[1759202651693,2.27749312,114400.0,114390.0,0.03502]
[1759202652593,2.24615589,114400.0,114390.0,0.03502]
[1759202653291,2.27749312,114400.0,114390.0,0.03502]
[1759202654391,1.48281312,114400.0,114390.0,0.03502]
[1759202654690,2.27745312,114400.0,114390.0,0.03502]
[1759202655400,1.48281312,114400.0,114390.0,0.1223746]
[1759202655696,2.27745312,114400.0,114390.0,0.1223746]
[1759202664403,2.55016493,114400.0,114390.0,0.1223746]
[1759202667600,1.0652353,114400.0,114390.0,0.1223746]
[1759202667802,1.46761807,114400.0,114390.0,0.4831746]
[1759202668199,1.46801807,114400.0,114390.0,0.4831746]
[1759202669403,0.67349807,114400.0,114390.0,0.4831746]
[1759202669603,1.46801807,114400.0,114390.0,0.4831746]
[1759202670306,1.4993553,114400.0,114390.0,0.4831746]
[1759202671503,1.77181913,114400.0,114390.0,0.4831746]
[1759202675407,1.4993553,114400.0,114390.0,0.4831746]
[1759202678014,0.95442764,114400.0,114390.0,0.4831746]
[1759202678211,1.4993553,114400.0,114390.0,0.4831746]
[1759202680308,1.46801807,114400.0,114390.0,0.1223746]
[1759202680508,1.46801807,114400.0,114390.0,0.4831746]
[1759202687113,1.7404819,114400.0,114390.0,0.4831746]
[1759202688721,1.7404819,114400.0,114390.0,0.39582]
[1759202690216,1.7404819,114400.0,114390.0,0.4831746]
[1759202690620,1.77181913,114400.0,114390.0,0.4831746]
[1759202692622,1.77181913,114400.0,114390.0,0.1223746]
[1759202698624,1.77181913,114400.0,114390.0,0.03502]
[1759202700923,2.13261913,114400.0,114390.0,0.03502]
[1759202706235,0.1002646,114390.0,114380.0,0.4830151]
[1759202706438,0.66910567,114390.0,114380.0,0.4830151]
[1759202707133,0.66910567,114390.0,114380.0,0.4849251]
[1759202707527,0.69510567,114390.0,114380.0,0.4869251]
[1759202708737,0.69510567,114390.0,114380.0,0.39957]
[1759202709131,0.67310567,114390.0,114380.0,0.4849322]
[1759202709532,1.46718567,114390.0,114380.0,0.4849322]
[1759202709933,1.53535383,114390.0,114380.0,0.39757]
[1759202710135,1.53535383,114390.0,114380.0,0.03677]
[1759202711339,1.53535383,114390.0,114380.0,0.1241322]
[1759202715540,1.53527383,114390.0,114380.0,0.1241322]
[1759202716241,1.53527383,114390.0,114380.0,0.03677]
[1759202716940,0.19634617,114390.0,114380.0,0.03677]
[1759202717141,1.53527383,114390.0,114380.0,0.03677]
[1759202719842,1.53527383,114390.0,114380.0,0.1241325]
[1759202723141,1.53527383,114390.0,114380.0,0.03677]
[1759202723441,1.56653106,114390.0,114380.0,0.03677]
[1759202724339,1.56659624,114390.0,114380.0,0.03677]
[1759202724842,0.77267624,114390.0,114380.0,0.03677]
[1759202725044,1.56659624,114390.0,114380.0,0.03677]
[1759202725941,0.77267624,114390.0,114380.0,0.03677]
[1759202726141,1.56655624,114390.0,114380.0,0.03677]
[1759202727340,0.77267624,114390.0,114380.0,0.03677]
[1759202727541,1.56655624,114390.0,114380.0,0.03677]
[1759202728435,0.77267624,114390.0,114380.0,0.03677]
[1759202728635,1.56655624,114390.0,114380.0,0.03677]
[1759202728936,0.77267624,114390.0,114380.0,0.03677]
[1759202729142,1.56655624,114390.0,114380.0,0.03677]
[1759202729444,0.77267624,114390.0,114380.0,0.03677]
[1759202729742,1.56651624,114390.0,114380.0,0.03677]
[1759202730246,1.53517901,114390.0,114380.0,0.03677]
[1759202731746,0.74133901,114390.0,114380.0,0.03677]
[1759202731943,1.53517901,114390.0,114380.0,0.03677]
[1759202734949,0.74133901,114390.0,114380.0,0.03677]
[1759202735151,1.53513901,114390.0,114380.0,0.03677]
[1759202736045,0.74133901,114390.0,114380.0,0.03677]
[1759202736247,1.53513901,114390.0,114380.0,0.03677]
[1759202736548,0.74133901,114390.0,114380.0,0.03677]
[1759202736748,1.53513901,114390.0,114380.0,0.03677]
[1759202742559,1.5112256,114390.0,114380.0,0.03677]
[1759202742758,1.53551494,114390.0,114380.0,0.03677]
[1759202760174,0.74171494,114390.0,114380.0,0.1241325]
[1759202760479,1.56657217,114390.0,114380.0,0.1241325]
[1759202761876,0.77305217,114390.0,114380.0,0.1241325]
[1759202762076,1.56653217,114390.0,114380.0,0.1241325]
[1759202764581,0.77305217,114390.0,114380.0,0.1241325]
[1759202764776,1.56653217,114390.0,114380.0,0.1241325]
[1759202766587,0.77305217,114390.0,114380.0,0.1241325]
[1759202766883,1.56649217,114390.0,114380.0,0.1241325]
[1759202767380,0.77305217,114390.0,114380.0,0.1241325]
[1759202767578,1.56645247,114390.0,114380.0,0.4849325]
[1759202767781,1.53511524,114390.0,114380.0,0.4849325]
[1759202768383,1.53551524,114390.0,114380.0,0.4849325]
[1759202772390,1.53547524,114390.0,114380.0,0.4849325]
[1759202774291,0.74211524,114390.0,114380.0,0.4849325]
[1759202774493,1.53547524,114390.0,114380.0,0.4849325]
[1759202775594,0.74211524,114390.0,114380.0,0.4849325]
[1759202775790,1.53547524,114390.0,114380.0,0.4849325]
[1759202776093,0.74211524,114390.0,114380.0,0.4849325]
[1759202776296,1.53543524,114390.0,114380.0,0.4849325]
[1759202782698,0.1097675,114390.0,114380.0,0.4849325]
[1759202782904,1.03678392,114390.0,114380.0,0.8849325]
[1759202783101,1.03638392,114390.0,114380.0,0.8849325]
[1759202783301,1.03678392,114390.0,114380.0,0.8849325]
[1759202785200,1.12413882,114390.0,114380.0,0.8849325]
[1759202786206,1.12407174,114390.0,114380.0,0.8849325]
[1759202786698,1.26275174,114390.0,114380.0,0.8849325]
[1759202790906,0.46955174,114390.0,114380.0,0.8849325]
[1759202791407,1.26271174,114390.0,114380.0,0.8849325]
[1759202794904,0.46955174,114390.0,114380.0,0.8849325]
[1759202795307,1.26267174,114390.0,114380.0,0.8849325]
[1759202797409,0.46955174,114390.0,114380.0,0.8849325]
[1759202797611,1.26263174,114390.0,114380.0,0.8849325]
[1759202798712,0.46955174,114390.0,114380.0,0.8849325]
[1759202798913,0.1971224,114390.0,114380.0,0.8849325]
[1759202799109,1.17523684,114390.0,114380.0,0.8849325]
[1759202799310,1.26259174,114390.0,114380.0,0.8849325]
[1759202799514,1.26259174,114390.0,114380.0,0.4849325]
[1759202805320,1.26255174,114390.0,114380.0,0.4849325]
[1759202805514,0.46955174,114390.0,114380.0,0.4849325]
[1759202805709,1.26251174,114390.0,114380.0,0.4849325]
[1759202805918,1.17515684,114390.0,114380.0,0.4849325]
[1759202806224,1.17515684,114390.0,114380.0,0.4830225]
[1759202807621,0.38219684,114390.0,114380.0,0.4830225]
[1759202807822,1.17515684,114390.0,114380.0,0.4830225]
[1759202808022,0.38219684,114390.0,114380.0,0.4830225]
[1759202808323,1.26251174,114390.0,114380.0,0.4830225]
[1759202808516,0.1097675,114390.0,114380.0,0.4830225]
[1759202808723,0.36928684,114390.0,114380.0,0.75545184]
[1759202808920,0.36928684,114390.0,114380.0,0.4830225]
[1759202809122,0.36928684,114390.0,114380.0,0.75545184]
[1759202809324,0.36888684,114390.0,114380.0,0.75545184]
[1759202809522,0.38179684,114390.0,114380.0,0.75545184]
[1759202810024,0.1097675,114390.0,114380.0,0.75545184]
[1759202810320,0.38219684,114390.0,114380.0,0.75545184]
[1759202810716,0.38219684,114390.0,114380.0,0.75736184]
[1759202811726,0.46955244,114390.0,114380.0,0.75736184]
[1759202813429,0.38219684,114390.0,114380.0,0.75736184]
[1759202814218,0.46955254,114390.0,114380.0,0.4849325]
[1759202814418,0.46955254,114390.0,114380.0,0.75736184]
[1759202816517,0.46955254,114390.0,114380.0,0.4849325]
[1759202816822,0.46955254,114390.0,114380.0,0.75736184]
[1759202817228,0.46955254,114390.0,114380.0,0.4849325]
[1759202817430,0.46955254,114390.0,114380.0,0.75736184]
[1759202823030,0.35507994,114390.0,114380.0,0.75736184]
[1759202823230,0.3307906,114390.0,114380.0,0.75736184]
[1759202823644,0.3437006,114390.0,114380.0,0.75736184]
[1759202823845,0.4310563,114390.0,114380.0,0.75736184]
[1759202825953,0.45407707,114390.0,114380.0,0.75736184]
[1759202828451,0.45407707,114390.0,114380.0,1.05736184]
[1759202829758,0.36672137,114390.0,114380.0,1.05736184]
[1759202830158,0.3437006,114390.0,114380.0,1.05736184]
[1759202830759,0.05836126,114390.0,114380.0,1.32979118]
[1759202830956,0.3307906,114390.0,114380.0,1.05736184]
[1759202831260,0.3303906,114390.0,114380.0,1.05736184]
[1759202831657,0.3307906,114390.0,114380.0,1.05736184]
[1759202834556,0.3307906,114390.0,114380.0,1.85000184]
[1759202837370,0.3307906,114390.0,114380.0,1.05736184]
[1759202837573,0.3307906,114390.0,114380.0,1.84996184]
[1759202838366,0.05836126,114390.0,114380.0,1.84996184]
[1759202838557,0.3307906,114390.0,114380.0,1.84996184]
[1759202838866,0.3307906,114390.0,114380.0,2.12239118]
[1759202839565,0.05836126,114390.0,114380.0,1.5775325]
[1759202839759,0.3307906,114390.0,114380.0,2.12239118]
[1759202841467,0.3307906,114390.0,114380.0,0.7849325]
[1759202841763,0.3307906,114390.0,114380.0,1.84992184]
[1759202842662,0.05836126,114390.0,114380.0,1.84992184]
[1759202842864,0.3307906,114390.0,114380.0,1.84992184]
[1759202844368,0.3307906,114390.0,114380.0,1.48912184]
[1759202844667,0.3307906,114390.0,114380.0,2.21072184]
[1759202845568,0.0004,114390.0,114380.0,2.48315118]
[1759202846069,0.01291,114400.0,114390.0,0.1218757]
[1759202846269,0.58042576,114400.0,114390.0,0.75510504]
[1759202846771,0.30799642,114400.0,114390.0,0.75510504]
[1759202847067,0.30799642,114400.0,114390.0,1.05510504]
[1759202847470,0.31199642,114400.0,114390.0,1.05510504]
[1759202847673,0.33999642,114400.0,114390.0,1.05810504]
[1759202848465,0.33992935,114400.0,114390.0,0.7856757]
[1759202848970,0.33992935,114400.0,114390.0,0.7875857]
[1759202852469,0.33992935,114400.0,114390.0,0.4875857]
[1759202853169,0.42727745,114400.0,114390.0,0.4875857]
[1759202857880,0.15491518,114400.0,114390.0,0.75994797]
[1759202858270,0.15491518,114400.0,114390.0,0.4875857]
[1759202858579,0.15491518,114400.0,114390.0,0.7875857]
[1759202866673,0.15491518,114400.0,114390.0,0.4875857]
[1759202867081,0.15491518,114400.0,114390.0,0.7875857]
[1759202867876,0.15491518,114400.0,114390.0,1.5799057]
[1759202870970,0.05465708,114400.0,114390.0,1.5799057]
[1759202871180,0.06756708,114400.0,114390.0,1.05994797]
[1759202871377,0.06756708,114400.0,114390.0,1.85226797]
[1759202871577,0.33992935,114400.0,114390.0,1.5799057]
[1759202872279,0.06756708,114400.0,114390.0,1.2799057]
[1759202872682,0.06756708,114400.0,114390.0,1.5799057]
[1759202873081,0.06756708,114400.0,114390.0,0.7875857]
[1759202873374,0.15491538,114400.0,114390.0,0.7875857]
[1759202873575,0.42727765,114400.0,114390.0,1.5798657]
[1759202873878,0.15491538,114400.0,114390.0,1.5798657]
[1759202874684,0.15491538,114400.0,114390.0,1.2798657]
[1759202875078,0.15491538,114400.0,114390.0,1.2190657]
[1759202875272,0.15491538,114400.0,114390.0,1.9406657]
[1759202875580,0.15491538,114400.0,114390.0,1.1483857]
[1759202875882,0.15491538,114400.0,114390.0,1.9406657]
[1759202876083,0.15491538,114400.0,114390.0,1.1483857]
[1759202876284,0.15491538,114400.0,114390.0,1.9406657]
[1759202877883,0.15491538,114400.0,114390.0,1.6406657]
[1759202879781,0.42727765,114400.0,114390.0,1.6406657]
[1759202880483,0.42727765,114400.0,114390.0,0.8483857]
[1759202880683,0.42727765,114400.0,114390.0,1.6406657]
[1759202885279,0.40462057,114400.0,114390.0,1.6406657]
[1759202885590,0.4272053,114400.0,114390.0,1.6406657]
[1759202886479,0.4272053,114400.0,114390.0,0.8483857]
[1759202886986,0.4272053,114400.0,114390.0,1.6406657]
[1759202887885,0.4129994,114400.0,114390.0,1.6406657]
[1759202900992,0.14063713,114400.0,114390.0,1.6406657]
[1759202901393,0.4129994,114400.0,114390.0,1.6406657]
[1759202908305,0.68538013,114400.0,114390.0,1.9130372]
[1759202909205,0.67117423,114400.0,114390.0,1.9130372]
[1759202912210,0.1038465,114400.0,114390.0,1.9130372]
[1759202912413,0.67117577,114400.0,114390.0,1.6406657]
[1759202912615,0.67117577,114400.0,114390.0,1.9130372]
[1759202913316,0.67117577,114400.0,114390.0,1.6406657]
[1759202919417,0.67117577,114400.0,114390.0,1.2798657]
[1759202920015,0.67121446,114400.0,114390.0,1.2779557]
[1759202938322,0.67121446,114400.0,114390.0,0.9171557]
[1759202938524,0.12647146,114400.0,114390.0,1.2779557]
[1759202939029,0.67121446,114400.0,114390.0,1.2779557]
[1759202950944,0.67121446,114400.0,114390.0,1.5503272]
[1759202951840,0.67121446,114400.0,114390.0,0.7580472]
[1759202952041,0.67121446,114400.0,114390.0,1.5502072]
[1759202954244,0.67121446,114400.0,114390.0,1.2778357]
[1759202957852,0.29858466,114400.0,114390.0,1.5502072]
[1759202960155,0.29858466,114400.0,114390.0,0.7580472]
[1759202960347,0.31149466,114400.0,114390.0,1.5501672]
[1759202963152,0.29728876,114400.0,114390.0,1.5501672]
[1759202963853,0.02491726,114400.0,114390.0,1.5501672]
[1759202964052,0.29728876,114400.0,114390.0,1.5501672]
[1759202969055,0.02491726,114400.0,114390.0,1.5501672]
[1759202969247,0.29728876,114400.0,114390.0,1.5501672]
[1759202970354,0.02491726,114400.0,114390.0,1.2777957]
[1759202973253,0.01200726,114400.0,114390.0,1.2777957]
[1759202974454,0.28435182,114400.0,114390.0,1.2777957]
[1759202975658,0.29726182,114400.0,114390.0,0.4856757]
[1759202975859,0.29726182,114400.0,114390.0,1.2777157]
[1759202977562,0.01200726,114400.0,114390.0,1.2777157]
[1759202977759,0.28435182,114400.0,114390.0,1.2777157]
[1759202979465,0.29478753,114400.0,114390.0,1.2777157]
[1759202980466,0.02244297,114400.0,114390.0,1.2777157]
[1759202983069,0.29478753,114400.0,114390.0,1.2777157]
[1759202991173,0.02244297,114400.0,114390.0,1.2777157]
[1759202991472,0.29478753,114400.0,114390.0,1.2777157]
[1759202994177,0.30769753,114400.0,114390.0,1.2775957]
[1759202994476,0.30769753,114400.0,114390.0,0.4856757]
[1759202994679,0.30769753,114400.0,114390.0,1.2775957]
[1759202995177,0.30769303,114400.0,114390.0,1.2775957]
[1759203009295,0.29478303,114400.0,114390.0,1.2775957]
[1759203011698,0.29478303,114400.0,114390.0,1.2798557]
[1759203016497,0.29478303,114400.0,114390.0,0.4879357]
[1759203016703,0.29478303,114400.0,114390.0,1.2796957]
[1759203018001,0.29478303,114400.0,114390.0,0.4879357]
[1759203018204,0.29478303,114400.0,114390.0,1.2796957]
[1759203022507,0.29478303,114400.0,114390.0,1.6404957]
[1759203023907,0.29478303,114400.0,114390.0,0.8487357]
[1759203024108,0.29478303,114400.0,114390.0,1.6404557]
[1759203024610,0.29478303,114400.0,114390.0,0.8487357]
[1759203024805,0.29478303,114400.0,114390.0,1.6404557]
[1759203029413,0.39504133,114400.0,114390.0,1.6404157]
[1759203030312,0.39505006,114400.0,114390.0,1.91276899]
[1759203034712,0.39505006,114400.0,114390.0,1.12108899]
[1759203034911,0.39505006,114400.0,114390.0,1.91276899]
[1759203036508,0.12269677,114400.0,114390.0,1.91276899]
[1759203036712,0.38214006,114400.0,114390.0,1.91276899]
[1759203041211,0.38214006,114400.0,114390.0,1.12108899]
[1759203041417,0.65449335,114400.0,114390.0,1.91268899]
[1759203042224,0.65449335,114400.0,114390.0,1.12108899]
[1759203042415,0.65449335,114400.0,114390.0,1.91268899]
[1759203042913,0.65449335,114400.0,114390.0,0.8487357]
[1759203043109,0.66740335,114400.0,114390.0,1.6403357]
[1759203043314,0.66740335,114400.0,114390.0,1.91268899]
[1759203044821,0.66740335,114400.0,114390.0,1.12108899]
[1759203045216,0.66740335,114400.0,114390.0,1.6402957]
[1759203045416,0.66740335,114400.0,114390.0,1.91264899]
[1759203048026,0.66740335,114400.0,114390.0,1.12108899]
[1759203048223,0.66740335,114400.0,114390.0,1.91264899]
[1759203052628,0.66740335,114400.0,114390.0,1.12108899]
[1759203052828,0.66740335,114400.0,114390.0,1.6402557]
[1759203058830,0.66740335,114400.0,114390.0,1.2794557]
[1759203059230,0.12269677,114400.0,114390.0,1.2794557]
[1759203059430,0.66740335,114400.0,114390.0,1.2794557]
[1759203060027,0.66740335,114400.0,114390.0,0.4879357]
[1759203060333,0.66740335,114400.0,114390.0,1.2794557]
[1759203062931,0.66740335,114400.0,114390.0,0.4879359]
[1759203063233,0.66740335,114400.0,114390.0,0.03978]
[1759203063631,1.06740335,114400.0,114390.0,0.03978]
[1759203063829,1.42820335,114400.0,114390.0,0.03978]
[1759203064033,1.42820335,114400.0,114390.0,0.00526]
[1759203064034,1.70055664,114400.0,114390.0,0.00526]
[1759203064835,2.49203664,114400.0,114390.0,0.00526]
[1759203065237,1.70055664,114400.0,114390.0,0.00526]
[1759203065431,2.49203664,114400.0,114390.0,0.00526]
[1759203066037,1.70055664,114400.0,114390.0,0.00526]
[1759203066239,2.21968335,114400.0,114390.0,0.00526]
[1759203066436,2.49203664,114400.0,114390.0,0.00526]
[1759203066632,1.70055664,114400.0,114390.0,0.02691]
[1759203066837,1.42820335,114400.0,114390.0,0.0406]
[1759203067041,2.21968335,114400.0,114390.0,0.0406]
[1759203068239,1.42820335,114400.0,114390.0,0.0406]
[1759203068440,2.21968335,114400.0,114390.0,0.0406]
[1759203069338,1.42820335,114400.0,114390.0,0.0406]
[1759203069536,2.21972335,114400.0,114390.0,0.0406]
[1759203070442,1.85892335,114400.0,114390.0,0.0406]